bitfinex-derivatives/quotes_SOLF0:USTF0_20250224
["timestamp","ask_amount","ask_price","bid_price","bid_amount"]
[1740413170852,8.951,153.48,153.42,0.04232993]
[1740413171050,8.951,153.48,153.26,12.38]
[1740413171254,8.951,153.48,153.27,1.19855318]
[1740413172353,0.04236657,153.39,153.36,7.665e-05]
[1740413172554,6.52,153.37,153.36,7.665e-05]
[1740413172750,194.5597,153.38,153.23,170.98]
[1740413172952,6.008,153.38,153.23,170.98]
[1740413173147,6.5217,153.34,153.23,170.98]
[1740413173348,6.008,153.38,153.23,170.98]
[1740413173552,6.008,153.38,153.27,0.04755231]
[1740413173752,0.04479715,153.3,153.29,6.5234]
[1740413173959,6.008,153.38,153.22,3.0266]
[1740413174258,6.008,153.38,153.33,6.5214]
[1740413174449,6.008,153.38,153.22,12.9266]
[1740413174647,188.5517,153.44,153.23,1.19880652]
[1740413174850,6.517,153.44,153.37,6.5196]
[1740413175247,12.38,153.55,153.32,12.38]
[1740413175455,6.5187,153.4,153.39,0.04508983]
[1740413175651,0.03646656,153.42,153.32,12.38]
[1740413175848,1.10265551,153.5,153.32,12.38]
[1740413176049,188.5517,153.51,153.32,37.39]
[1740413176249,2.8377,153.49,153.32,37.39]
[1740413176459,6.5168,153.45,153.32,37.39]
[1740413176652,2.8377,153.49,153.32,37.39]
[1740413176853,0.04644049,153.4,153.37,0.04126539]
[1740413177258,2.8377,153.49,153.32,37.39]
[1740413177459,0.04610059,153.4,153.37,0.04939218]
[1740413177757,2.8377,153.49,153.32,37.39]
[1740413178157,0.04859662,153.4,153.37,0.04641908]
[1740413178555,2.8377,153.49,153.32,37.39]
[1740413178761,0.04847629,153.4,153.37,0.04813152]
[1740413178958,0.04847629,153.4,153.32,37.39]
[1740413179153,2.8377,153.49,153.32,37.39]
[1740413179958,3.0126,153.48,153.33,3.0192]
[1740413180159,6.5163,153.46,153.39,6.56034536]
[1740413180358,12.36,153.77,153.4,1.19767594]
[1740413180555,12.36,153.77,153.41,13.66369597]
[1740413180857,16.47858749,153.76,153.42,176.30048694]
[1740413181058,1.10148749,153.75,153.43,2.50120197]
[1740413181258,6.509,153.64,153.53,6.513]
[1740413181463,0.04444781,153.61,153.57,0.0480194]
[1740413181655,0.04444781,153.61,153.44,1.19718519]
[1740413181856,3.0171,153.63,153.36,68.15627296]
[1740413182555,1.10186347,153.62,153.36,68.15627296]
[1740413182759,3.0171,153.63,153.36,68.15627296]
[1740413183061,9.5261,153.63,153.52,6.5135]
[1740413183262,0.04854614,153.51,153.47,0.04660238]
[1740413183460,6.5108,153.59,153.49,6.5146]
[1740413183761,0.04723009,153.51,153.49,6.5146]
[1740413183962,6.5108,153.59,153.49,6.5146]
[1740413184464,208.2217,153.62,153.43,170.72]
[1740413184657,208.2217,153.61,153.52,0.04928634]
[1740413184961,208.2217,153.61,153.39,6.5191]
[1740413184962,6.5153,153.48,153.39,6.5191]
[1740413185158,3.0876,153.47,153.39,15.52157575]
[1740413185362,6.135,153.47,153.39,9.00247575]
[1740413185756,6.135,153.47,153.39,4.28337575]
[1740413185951,6.135,153.47,153.41,0.04577491]
[1740413186163,6.5171,153.44,153.39,4.28337575]
[1740413186360,0.04746417,153.45,153.39,4.28337575]
[1740413186659,0.04746417,153.45,153.38,26.7878347]
[1740413186861,0.04746417,153.45,153.38,33.3073347]
[1740413187157,0.04746417,153.45,153.38,26.7878347]
[1740413187356,0.04746417,153.45,153.44,6.517]
[1740413187555,0.04746417,153.45,153.4,0.04348349]
[1740413187758,0.04746417,153.45,153.42,6.5175]
[1740413187953,170.7,153.74,153.4,0.04348349]
[1740413188164,2.9714,153.62,153.4,0.04348349]
[1740413188458,2.9714,153.62,153.41,1.30369597]
[1740413188657,19.67,153.72,153.42,1.19714669]
[1740413188863,6.5095,153.62,153.53,6.513]
[1740413189059,22.6414,153.72,153.47,12.36]
[1740413189357,0.04197599,153.59,153.55,0.04732389]
[1740413189759,188.5517,153.7,153.47,12.36]
[1740413189968,0.04366357,153.59,153.55,0.04461938]
[1740413190360,12.36,153.64,153.43,2.8876]
[1740413190565,0.04425651,153.59,153.55,0.04799613]
[1740413190759,2.9758,153.63,153.43,2.8876]
[1740413190956,0.04233485,153.59,153.43,2.8876]
[1740413191162,2.8837,153.62,153.43,2.8876]
[1740413191664,2.8837,153.62,153.48,6.5153]
[1740413191859,0.04659367,153.54,153.51,0.04891935]
[1740413192161,9.3931,153.62,153.51,6.514]
[1740413192361,0.04167605,153.54,153.43,2.8876]
[1740413192560,2.8837,153.62,153.55,0.0462523]
[1740413192754,9.3931,153.62,153.53,6.5132]
[1740413192954,0.04215994,153.6,153.57,0.04841894]
[1740413193159,0.04331733,153.59,153.57,0.04841894]
[1740413193663,0.04331733,153.59,153.52,9.88]
[1740413193865,6.5107,153.59,153.52,9.88]
[1740413194068,2.8837,153.62,153.52,9.88]
[1740413194566,6.5106,153.6,153.52,9.88]
[1740413194767,2.8837,153.62,153.52,9.88]
[1740413195065,0.04454777,153.58,153.54,0.04360133]
[1740413195866,6.5124,153.55,153.52,9.88]
[1740413196176,0.04454777,153.58,153.52,9.88]
[1740413197063,0.04454777,153.58,153.53,0.04494676]
[1740413198666,6.5115,153.57,153.53,0.04494676]
[1740413198868,0.04454777,153.58,153.53,0.04494676]
[1740413199171,0.04454777,153.58,153.54,6.5127]
[1740413199372,0.04454777,153.58,153.53,0.04494676]
[1740413200275,6.5128,153.54,153.53,0.04494676]
[1740413200472,0.04454777,153.58,153.52,9.88]
[1740413200772,200.8917,153.57,153.51,18.16]
[1740413201073,200.8917,153.57,153.43,26.7878347]
[1740413201672,0.04306923,153.52,153.48,0.04625436]
[1740413201873,6.55706923,153.52,153.43,26.7878347]
[1740413202071,3.1061,153.51,153.43,26.7878347]
[1740413202373,6.5154,153.48,153.43,26.7878347]
[1740413202565,3.1061,153.51,153.4,52.04014353]
[1740413202963,0.04734637,153.47,153.44,0.04330897]
[1740413205572,19.67,153.71,153.44,0.04330897]
[1740413205774,195.81113821,153.67,153.43,170.58]
[1740413205975,1.10193821,153.66,153.44,2.9301]
[1740413206172,1.0699,153.66,153.44,2.9301]
[1740413206370,6.5089,153.64,153.54,6.5124]
[1740413206571,1.0699,153.66,153.44,2.9301]
[1740413206771,0.04147751,153.61,153.57,0.04908353]
[1740413206971,6.5095,153.62,153.44,2.9301]
[1740413207167,0.04166162,153.61,153.57,0.04512836]
[1740413207469,0.04272283,153.61,153.57,0.04565368]
[1740413207877,0.04272283,153.61,153.44,2.9301]
[1740413208079,6.5114,153.58,153.49,6.5145]
[1740413208280,2.8745,153.57,153.44,2.9301]
[1740413208477,6.5129,153.54,153.46,6.5159]
[1740413208670,2.8745,153.57,153.44,2.9301]
[1740413208874,2.8745,153.57,153.52,26.7878347]
[1740413209076,6.5132,153.53,153.52,23.5012347]
[1740413209275,12.34,153.54,153.51,65.5065764]
[1740413209481,6.5132,153.53,153.51,41.75845112]
[1740413209682,12.34,153.54,153.51,41.75845112]
[1740413210677,6.5136,153.52,153.51,41.75845112]
[1740413210976,6.5136,153.52,153.51,5.112e-05]
[1740413211582,7.61604336,153.52,153.51,5.112e-05]
[1740413211877,1.10244336,153.52,153.51,5.112e-05]
[1740413212080,1.11803413,153.56,153.51,5.112e-05]
[1740413212276,12.34,153.55,153.51,5.112e-05]
[1740413212476,1.11803413,153.56,153.51,5.112e-05]
[1740413212784,0.04813413,153.56,153.51,5.112e-05]
[1740413214073,1.15024593,153.56,153.51,5.112e-05]
[1740413215282,7.66244593,153.56,153.51,5.112e-05]
[1740413215475,13.4421118,153.55,153.51,5.112e-05]
[1740413215681,12.34,153.55,153.51,5.112e-05]
[1740413216585,195.10220293,153.54,153.51,5.112e-05]
[1740413216781,194.0,153.54,153.51,5.112e-05]
[1740413216982,194.0,153.53,153.51,5.112e-05]
[1740413218184,6.5136,153.52,153.51,5.112e-05]
[1740413218577,1.10239594,153.52,153.51,5.112e-05]
[1740413219085,1.1023914,153.52,153.51,5.112e-05]
[1740413219287,18.8524,153.55,153.51,5.112e-05]
[1740413219479,1.10227974,153.54,153.51,5.112e-05]
[1740413220282,25.66295168,153.54,153.51,5.112e-05]
[1740413220480,6.5136,153.52,153.51,5.112e-05]
[1740413220684,7.61587974,153.52,153.51,5.112e-05]
[1740413221185,27.28587974,153.52,153.51,5.112e-05]
[1740413221388,6.516,153.47,153.4,1.19721421]
[1740413221690,12.34,153.46,153.4,1.19721421]
[1740413221887,1.10281723,153.45,153.4,1.19721421]
[1740413222384,12.34,153.46,153.4,1.19721421]
[1740413222584,194.04683067,153.44,153.4,1.05171443]
[1740413222885,5.99357224,153.43,153.4,0.95871443]
[1740413223094,194.04683067,153.44,153.4,0.95871443]
[1740413223288,1.10307655,153.43,153.4,0.95871443]
[1740413223489,194.04683067,153.44,153.4,0.95871443]
[1740413223786,194.04683067,153.44,153.4,1.00502412]
[1740413224088,194.0,153.48,153.4,1.00502412]
[1740413224292,194.0,153.54,153.41,6.1927]
[1740413224493,71.92823972,153.55,153.54,6.5128]
[1740413224792,36.99083972,153.55,153.54,6.5128]
[1740413225180,36.99083972,153.55,153.41,6.1927]
[1740413225385,36.99083972,153.55,153.53,0.04625484]
[1740413225585,76.58786943,153.57,153.47,12.34]
[1740413225782,0.04228868,153.56,153.52,0.04485057]
[1740413225982,62.23756943,153.57,153.52,0.04485057]
[1740413226986,179.94840894,153.58,153.52,0.04485057]
[1740413227191,0.04832858,153.56,153.52,0.04485057]
[1740413227588,6.56062858,153.56,153.41,3.0867]
[1740413227789,195.10388901,153.55,153.41,3.0867]
[1740413227991,1.10388901,153.54,153.41,3.0867]
[1740413228187,194.0,153.53,153.4,0.95871443]
[1740413228387,213.67,153.52,153.4,0.95871443]
[1740413228586,214.77402376,153.52,153.4,0.95871443]
[1740413228790,0.04508736,153.48,153.44,0.04485596]
[1740413229188,1.14935765,153.48,153.44,0.04485596]
[1740413229797,0.04508736,153.48,153.44,0.04485596]
[1740413229998,1.14950534,153.48,153.44,0.04485596]
[1740413230894,194.0,153.47,153.44,0.04485596]
[1740413231295,0.04508736,153.48,153.44,0.04485596]
[1740413235497,200.5125,153.55,153.44,0.04485596]
[1740413235709,194.0,153.55,153.44,0.04485596]
[1740413236001,6.5136,153.53,153.4,13.29871443]
[1740413236208,194.0,153.55,153.4,13.29871443]
[1740413236602,0.04213317,153.49,153.46,0.04390924]
[1740413240605,6.1336,153.64,153.46,0.04390924]
[1740413240907,2.9107,153.63,153.44,12.34]
[1740413241305,6.5115,153.58,153.44,12.34]
[1740413241612,2.9107,153.63,153.44,12.34]
[1740413241809,0.04474235,153.53,153.49,0.04618349]
[1740413242006,6.5127,153.55,153.46,6.5161]
[1740413242211,0.04711286,153.53,153.49,0.04969952]
[1740413242406,5.829,153.62,153.44,12.34]
[1740413242602,0.04118774,153.53,153.49,0.0489061]
[1740413242808,194.0,153.61,153.42,12.34]
[1740413243004,0.0455078,153.53,153.49,0.04429028]
[1740413243212,194.0,153.66,153.43,1.19688365]
[1740413243404,8.9167,153.7,153.43,192.19688365]
[1740413243607,1.10291079,153.69,153.44,1.30344108]
[1740413244007,6.5096,153.62,153.53,6.5128]
[1740413244305,8.9167,153.7,153.44,1.30344108]
[1740413244306,0.04112876,153.59,153.56,0.04946712]
[1740413244512,6.5087,153.64,153.55,6.5123]
[1740413244810,0.04530687,153.59,153.56,0.04353775]
[1740413245009,6.5082,153.65,153.57,6.5114]
[1740413245215,0.04259496,153.59,153.57,6.5114]
[1740413245418,8.9167,153.7,153.51,12.34]
[1740413245616,0.04587678,153.6,153.56,6.55954899]
[1740413245911,8.9167,153.7,153.51,12.34]
[1740413246114,0.05001008,153.6,153.59,6.5107]
[1740413246307,1.008e-05,153.6,153.59,6.5107]
[1740413246512,2.9163,153.73,153.51,12.34]
[1740413246707,2.9163,153.73,153.59,6.5106]
[1740413246918,195.10262877,153.72,153.51,12.34]
[1740413247117,1.10262877,153.71,153.51,12.34]
[1740413247311,6.5093,153.63,153.55,6.512]
[1740413247512,6.55831997,153.63,153.59,0.04430843]
[1740413247819,0.04901997,153.63,153.59,0.04430843]
[1740413248210,6.5097,153.62,153.59,0.04430843]
[1740413248814,6.5099,153.61,153.59,0.04430843]
[1740413249018,0.04901997,153.63,153.59,0.04430843]
[1740413251614,0.04901997,153.63,153.6,6.5102]
[1740413252418,0.04901997,153.63,153.59,6.55470843]
[1740413252722,0.04901997,153.63,153.59,0.04430843]
[1740413254622,0.04901997,153.63,153.62,6.5094]
[1740413255317,0.04901997,153.63,153.6,6.5102]
[1740413255524,0.04901997,153.63,153.59,0.04430843]
[1740413256025,6.5096,153.62,153.59,0.04430843]
[1740413256218,0.04901997,153.63,153.59,0.04430843]
[1740413256418,0.04901997,153.63,153.62,6.5094]
[1740413258322,0.04901997,153.63,153.59,0.04430843]
[1740413258823,0.04901997,153.63,153.62,6.5094]
[1740413259016,0.04901997,153.63,153.59,0.04430843]
[1740413259620,1.997e-05,153.63,153.59,0.04430843]
[1740413260220,1.997e-05,153.63,153.62,6.5094]
[1740413260931,1.997e-05,153.63,153.59,0.04430843]
[1740413261427,1.997e-05,153.63,153.62,6.5094]
[1740413263628,0.66381527,153.95,153.62,6.5094]
[1740413263937,8.7666,153.84,153.63,13.62182906]
[1740413264537,6.5014,153.81,153.76,6.5031]
[1740413264836,6.5014,153.81,153.63,13.62182906]
[1740413264837,8.7666,153.84,153.63,13.62182906]
[1740413265138,5.8986,153.84,153.8,6.5014]
[1740413265341,6.5,153.85,153.8,6.5014]
[1740413265639,0.04164766,153.84,153.72,12.32]
[1740413265829,6.502,153.8,153.69,170.4]
[1740413266032,2.868,153.83,153.69,170.4]
[1740413266235,6.5017,153.81,153.76,0.04216877]
[1740413266437,0.04452247,153.78,153.76,0.04216877]
[1740413266838,2.247e-05,153.78,153.77,6.503]
[1740413270938,5.584,153.91,153.79,6.5019]
[1740413271138,1.10126297,153.9,153.74,21.16633173]
[1740413271340,194.0,153.9,153.74,21.16633173]
[1740413272143,0.0477885,153.84,153.8,0.04838267]
[1740413272342,0.0477885,153.84,153.8,6.5014]
[1740413272544,0.0477885,153.84,153.8,6.54354476]
[1740413272837,0.0477885,153.84,153.8,0.04214476]
[1740413273043,2.7267885,153.84,153.8,0.04214476]
[1740413273345,5.5968,153.83,153.8,0.04214476]
[1740413273842,5.5968,153.83,153.74,8.84633173]
[1740413274048,5.5968,153.83,153.71,35.58384128]
[1740413274543,5.5968,153.83,153.8,6.5016]
[1740413274938,5.64655981,153.83,153.8,0.04594956]
[1740413275144,5.64655981,153.83,153.71,35.58384128]
[1740413275342,5.5968,153.83,153.71,35.58384128]
[1740413276338,0.04648114,153.79,153.76,6.5034]
[1740413276943,0.04648114,153.79,153.76,6.5032]
[1740413277241,0.04648114,153.79,153.75,0.04208983]
[1740413277443,0.04648114,153.79,153.76,6.5032]
[1740413277846,0.04648114,153.79,153.75,0.04208983]
[1740413278841,0.04648114,153.79,153.7,35.58384128]
[1740413279745,1.10204027,153.8,153.7,35.58384128]
[1740413280048,1.10204027,153.8,153.7,30.97944128]
[1740413280236,194.0,153.81,153.7,30.97944128]
[1740413280739,0.04712215,153.77,153.74,0.04571455]
[1740413280936,0.04712215,153.77,153.62,8.84633173]
[1740413281142,175.8568,153.83,153.71,6.5052]
[1740413281341,175.8568,153.83,153.62,8.84633173]
[1740413281547,214.62190047,153.82,153.62,8.84633173]
[1740413281746,1.10190047,153.81,153.62,8.84633173]
[1740413282141,0.04635432,153.73,153.7,0.04848813]
[1740413282341,194.0,153.8,153.63,6.83]
[1740413282741,0.04341818,153.73,153.7,0.04164803]
[1740413283145,194.0,153.8,153.63,6.83]
[1740413283340,0.04352384,153.73,153.7,0.04531637]
[1740413283546,1.10203437,153.82,153.63,6.83]
[1740413283741,6.114e-05,153.7,153.66,0.04140717]
[1740413284047,5.5968,153.83,153.67,12.3]
[1740413285042,0.04842829,153.77,153.73,0.04534059]
[1740413285340,0.04842829,153.77,153.67,12.3]
[1740413285547,0.04842829,153.77,153.73,0.04310884]
[1740413285739,5.5968,153.83,153.73,0.04310884]
[1740413285944,0.04120204,153.77,153.67,12.3]
[1740413286344,5.5968,153.83,153.76,0.04276885]
[1740413286547,0.04483902,153.74,153.68,6.01010954]
[1740413286750,5.5968,153.83,153.68,6.01010954]
[1740413286943,0.04270428,153.73,153.69,0.04428704]
[1740413287140,5.5968,153.83,153.68,6.01010954]
[1740413287344,0.0427592,153.73,153.69,0.04123998]
[1740413287545,0.0427592,153.73,153.68,6.01010954]
[1740413287546,6.5027,153.78,153.73,6.5044]
[1740413287749,0.04721061,153.73,153.69,0.0465089]
[1740413288049,5.5968,153.83,153.68,6.01010954]
[1740413288248,0.04314558,153.73,153.72,6.5049]
[1740413288549,0.04418279,153.74,153.71,0.04529345]
[1740413288746,6.5047,153.74,153.71,0.04529345]
[1740413288941,12.3,153.75,153.71,0.04707189]
[1740413289144,2.9353,153.73,153.67,8.84633173]
[1740413289651,2.9353,153.73,153.66,71.30466063]
[1740413290341,6.5067,153.69,153.68,0.0497307]
[1740413290750,0.04574811,153.71,153.68,0.0497307]
[1740413291346,0.04574811,153.71,153.66,71.30466063]
[1740413292250,0.04574811,153.71,153.63,6.83]
[1740413292445,0.04574811,153.71,153.69,6.5061]
[1740413292650,0.04574811,153.71,153.67,0.04855591]
[1740413293048,6.5067,153.69,153.67,0.04855591]
[1740413293347,0.04574811,153.71,153.67,0.04855591]
[1740413293550,6.5061,153.7,153.67,0.04855591]
[1740413293750,0.04574811,153.71,153.67,0.04855591]
[1740413294151,6.5068,153.68,153.67,0.04855591]
[1740413294451,6.5068,153.68,153.63,6.83]
[1740413294452,2.9848,153.7,153.63,6.83]
[1740413294849,197.0543,153.69,153.57,71.30466063]
[1740413295250,6.5111,153.58,153.57,71.30466063]
[1740413296251,6.5579735,153.59,153.57,71.30466063]
[1740413296450,0.0472735,153.59,153.57,71.30466063]
[1740413299253,6.5111,153.58,153.57,31.85233878]
[1740413299460,6.5111,153.58,153.57,5.08003878]
[1740413299654,0.0472735,153.59,153.57,5.08003878]
[1740413299850,194.0,153.58,153.57,5.08003878]
[1740413300050,194.0,153.58,153.56,0.04581439]
[1740413300851,200.5112,153.58,153.56,0.04581439]
[1740413301059,194.0,153.57,153.56,0.04581439]
[1740413301851,195.10363158,153.57,153.56,0.04581439]
[1740413302047,201.61521024,153.57,153.56,0.04581439]
[1740413302352,27.13521024,153.57,153.56,1.439e-05]
[1740413302548,1.10371024,153.57,153.3,12.32]
[1740413302753,194.0,153.56,153.3,12.32]
[1740413302954,1.10371024,153.55,153.3,12.32]
[1740413303751,0.04901523,153.49,153.46,0.04853204]
[1740413304052,206.32,153.48,153.46,0.04853204]
[1740413304258,221.13951024,153.47,153.46,3.204e-05]
[1740413304457,380.52,153.46,153.28,107.41203278]
[1740413304758,19.52,153.4,153.28,107.41203278]
[1740413304953,397.42371024,153.39,153.28,107.41203278]
[1740413305159,1.10371024,153.38,153.28,107.41203278]
[1740413305553,0.04687473,153.35,153.31,0.04624503]
[1740413305960,1.63174236,153.34,153.31,0.04624503]
[1740413306159,1.63174236,153.33,153.31,0.04624503]
[1740413306356,0.04687473,153.35,153.31,0.04624503]
[1740413308561,12.36687473,153.35,153.31,0.04624503]
[1740413310659,12.36687473,153.35,153.31,6.56874503]
[1740413310858,0.04687473,153.35,153.31,0.04624503]
[1740413312060,0.04687473,153.35,153.34,6.5213]
[1740413312260,0.04687473,153.35,153.31,0.04624503]
[1740413312261,194.0,153.51,153.32,2.8707]
[1740413312463,1.11186335,153.5,153.33,3.0268]
[1740413313266,12.34,153.52,153.33,3.0268]
[1740413313461,7.743e-05,153.43,153.4,0.04495262]
[1740413313767,7.743e-05,153.43,153.33,3.0268]
[1740413313768,170.68,153.57,153.33,364.7068]
[1740413314067,12.34,153.61,153.34,1.19798851]
[1740413314262,1.11113376,153.59,153.56,6.5119]
[1740413314465,170.68,153.66,153.43,12.34]
[1740413314659,0.04370266,153.59,153.56,0.04265871]
[1740413314860,0.04370266,153.59,153.44,5.8975]
[1740413315065,0.04370266,153.59,153.56,0.04340967]
[1740413315066,0.04709733,153.59,153.56,0.04340967]
[1740413315365,170.68,153.66,153.44,196.8975]
[1740413315561,170.68,153.66,153.59,6.5107]
[1740413315756,170.68,153.66,153.56,0.04758563]
[1740413315961,0.04676646,153.64,153.59,0.04500242]
[1740413316265,170.68,153.66,153.46,12.32]
[1740413316561,20.63055393,153.65,153.54,0.04270919]
[1740413316771,1.11055393,153.64,153.46,12.32]
[1740413316958,0.04629148,153.61,153.58,0.04309888]
[1740413317163,19.52,153.59,153.44,5.8975]
[1740413317467,19.52,153.57,153.44,5.8975]
[1740413317660,19.52,153.57,153.48,6.5151]
[1740413317857,206.32,153.58,153.44,5.8975]
[1740413318055,1.11121102,153.57,153.44,5.8975]
[1740413318260,0.04157518,153.53,153.49,0.04771618]
[1740413318764,7.518e-05,153.53,153.52,6.5136]
[1740413320958,170.68,153.66,153.5,3.0808]
[1740413321162,12.32,153.7,153.5,3.0808]
[1740413321471,1.11037771,153.69,153.5,3.0808]
[1740413321675,1.18977771,153.69,153.5,3.0808]
[1740413321864,1.11037771,153.68,153.61,6.5094]
[1740413322165,1.11037771,153.68,153.5,3.0808]
[1740413322166,0.04873703,153.66,153.5,3.0808]
[1740413322363,0.04873703,153.66,153.63,0.04626268]
[1740413322563,0.04390781,153.6,153.55,6.512]
[1740413322870,0.04365731,153.59,153.56,0.04827282]
[1740413323264,194.0,153.58,153.44,5.8975]
[1740413324067,6.5116,153.57,153.5,6.5144]
[1740413324473,0.04177527,153.55,153.52,0.04624859]
[1740413326074,0.04177527,153.55,153.44,5.8975]
[1740413326075,194.0,153.54,153.44,2.8707]
[1740413326269,19.52,153.53,153.44,2.8707]
[1740413326472,12.32,153.52,153.44,2.8707]
[1740413326868,12.32,153.52,153.47,6.5155]
[1740413327068,12.32,153.52,153.44,2.8707]
[1740413327269,0.04743956,153.51,153.48,6.55805181]
[1740413327466,0.04743956,153.51,153.48,0.04275181]
[1740413329573,0.0753,153.6,153.48,0.04275181]
[1740413329777,13.43112416,153.59,153.45,2.8096]
[1740413329975,12.32,153.59,153.45,2.8096]
[1740413330876,0.0436608,153.54,153.5,0.04797861]
[1740413331078,12.32,153.59,153.5,0.04797861]
[1740413331273,12.32,153.59,153.58,6.5111]
[1740413331674,194.0,153.65,153.64,6.5085]
[1740413331977,12.32,153.67,153.45,2.8096]
[1740413332175,170.6,153.71,153.51,13.0281]
[1740413332476,0.04894713,153.63,153.49,12.32]
[1740413332680,13.43027957,153.7,153.59,0.04521173]
[1740413332681,1.1102201,153.69,153.59,0.04521173]
[1740413332875,4.289e-05,153.58,153.53,5.8595]
[1740413333077,12.32,153.7,153.53,5.8595]
[1740413333277,12.32,153.69,153.53,5.8595]
[1740413333477,12.32,153.69,153.63,6.5086]
[1740413333680,12.32,153.69,153.53,5.8595]
[1740413333973,1.11027115,153.68,153.53,5.8595]
[1740413334179,0.04433556,153.63,153.62,6.509]
[1740413334473,12.32,153.69,153.61,0.04315644]
[1740413334676,12.32,153.69,153.53,5.8595]
[1740413334876,0.04182356,153.67,153.63,0.04145879]
[1740413335073,1.11026694,153.68,153.53,5.8595]
[1740413335270,0.04434318,153.67,153.53,5.8595]
[1740413335475,3.71e-06,153.63,153.59,0.04143132]
[1740413335775,1.11024301,153.7,153.53,5.8595]
[1740413336179,182.92,153.71,153.53,5.8595]
[1740413336479,1.11014882,153.7,153.54,2.9771]
[1740413336678,0.04926819,153.64,153.62,6.5093]
[1740413336878,195.11014882,153.68,153.54,2.9771]
[1740413337082,0.04388061,153.65,153.61,0.04121285]
[1740413337379,0.04388061,153.65,153.64,6.5085]
[1740413337574,194.0,153.7,153.61,0.04446412]
[1740413337786,0.04287018,153.66,153.61,0.04446412]
[1740413338278,0.04287018,153.66,153.65,6.5081]
[1740413338680,170.6,153.71,153.61,0.04446412]
[1740413338877,170.6,153.71,153.56,13.0236]
[1740413339480,170.6,153.71,153.54,2.9771]
[1740413339778,2.714e-05,153.64,153.61,0.04952031]
[1740413339975,12.32,153.76,153.54,2.9771]
[1740413340179,1.10980516,153.75,153.55,19.5366]
[1740413340382,1.10980516,153.78,153.55,19.5366]
[1740413340687,1.10974601,153.77,153.55,19.5366]
[1740413340883,0.04364199,153.68,153.64,0.04880034]
[1740413341089,1.10974601,153.77,153.72,6.505]
[1740413341976,1.10974601,153.77,153.63,5.8523]
[1740413342175,0.04709326,153.72,153.68,0.04471055]
[1740413342582,0.04709326,153.72,153.68,6.55151055]
[1740413342780,0.04709326,153.72,153.68,0.04471055]
[1740413343491,0.04709326,153.72,153.58,3.1335]
[1740413343492,194.0,153.71,153.58,3.1335]
[1740413343687,6.5069,153.68,153.58,3.1335]
[1740413343891,206.32,153.67,153.61,6.5095]
[1740413344193,6.5081,153.65,153.5,13.0284]
[1740413344382,1.11051951,153.64,153.58,6.5109]
[1740413344583,0.04775206,153.59,153.58,6.5109]
[1740413344792,200.5081,153.65,153.58,6.5109]
[1740413345090,0.04744567,153.6,153.58,6.5109]
[1740413347391,0.04744567,153.6,153.59,6.5107]
[1740413347685,194.0,153.65,153.57,0.04487602]
[1740413347891,12.32,153.67,153.57,0.04487602]
[1740413348194,1.11047742,153.66,153.52,2.9697]
[1740413348791,1.11047742,153.66,153.57,0.04857135]
[1740413349090,0.04690837,153.61,153.57,0.04857135]
[1740413349891,0.04690837,153.61,153.58,6.511]
[1740413350689,0.04690837,153.61,153.59,6.5105]
[1740413351399,0.04690837,153.61,153.6,6.5102]
[1740413351800,0.04690837,153.61,153.57,0.04857135]
[1740413351994,0.04690837,153.61,153.57,6.55987135]
[1740413352397,0.04690837,153.61,153.57,0.04857135]
[1740413353299,0.04690837,153.61,153.58,6.5108]
[1740413353494,0.04690837,153.61,153.57,0.04857135]
[1740413354501,0.04690837,153.61,153.6,6.5102]
[1740413354794,194.0,153.66,153.57,0.04857135]
[1740413355000,12.3,153.68,153.57,0.04857135]
[1740413355200,12.3,153.68,153.53,13.0259]
[1740413355812,12.3,153.68,153.62,6.5091]
[1740413356107,0.0455548,153.67,153.62,6.5091]
[1740413356307,0.0455548,153.67,153.63,0.04482285]
[1740413356703,6.5529548,153.67,153.63,0.04482285]
[1740413356908,0.0455548,153.67,153.53,13.0259]
[1740413357101,6.508,153.66,153.59,6.5103]
[1740413357301,194.0,153.65,153.52,2.9697]
[1740413357505,194.2114,153.64,153.52,2.9697]
[1740413357709,198.8873217,153.63,153.54,6.5126]
[1740413358009,194.0,153.63,153.51,3.1335]
[1740413358205,0.0422464,153.6,153.57,0.04349903]
[1740413358408,206.3,153.59,153.44,2.8939]